[Event "Božićni turnir u VaraždinskimToplicama 26.12.2025."]
[Site "Varazdinske Toplice, Croatia"]
[Date "2025.12.26"]
[Round "5.7"]
[White "Vukmirovic, Dusan"]
[Black "Kovacek, Pavlo"]
[Result "0-1"]
[TimeControl "10"]
[WhiteFideId "938785"]
[BlackFideId "14559200"]
[WhiteElo "2082"]
[BlackElo "1704"]

1. e4 {[%clk 00:09:59]} c5 {[%clk 00:09:59]} {[%emt 00:00:01]} 2. Nf3 {[%clk
00:09:58]} {[%emt 00:00:02]} e6 {[%clk 00:09:58]} 3. d4 {[%clk 00:09:56]}
{[%emt 00:00:02]} cxd4 {[%clk 00:09:56]} {[%emt 00:00:01]} 4. Nxd4 {[%clk
00:09:55]} {[%emt 00:00:02]} Nf6 {[%clk 00:09:55]} 5. Nc3 {[%clk 00:09:53]}
{[%emt 00:00:02]} Bb4 {[%clk 00:09:54]} {[%emt 00:00:01]} 6. Ndb5 {[%clk
00:09:48]} {[%emt 00:00:05]} d5 {[%clk 00:09:40]} {[%emt 00:00:15]} 7. exd5
{[%clk 00:09:37]} {[%emt 00:00:10]} Nxd5 {[%clk 00:09:32]} {[%emt 00:00:07]} 8.
Bd3 {[%clk 00:07:31]} {[%emt 00:02:06]} a6 {[%clk 00:09:21]} {[%emt 00:00:11]}
9. Qg4 {[%clk 00:06:45]} {[%emt 00:00:47]} Kf8 {[%clk 00:08:42]} {[%emt
00:00:39]} 10. O-O {[%clk 00:06:35]} {[%emt 00:00:10]} h5 {[%clk 00:07:44]}
{[%emt 00:00:58]} 11. Qe4 {[%clk 00:05:59]} {[%emt 00:00:36]} f5 {[%clk
00:07:32]} {[%emt 00:00:12]} 12. Qe2 {[%clk 00:03:31]} {[%emt 00:02:28]} axb5
{[%clk 00:07:29]} {[%emt 00:00:03]} 13. Nxb5 {[%clk 00:03:29]} {[%emt
00:00:02]} Nc6 {[%clk 00:06:36]} {[%emt 00:00:52]} 14. c4 {[%clk 00:03:26]}
{[%emt 00:00:04]} Nc7 {[%clk 00:06:26]} {[%emt 00:00:11]} 15. Rd1 {[%clk
00:03:16]} {[%emt 00:00:09]} Qe7 {[%clk 00:06:00]} {[%emt 00:00:25]} 16. Bf4
{[%clk 00:02:35]} {[%emt 00:00:41]} e5 {[%clk 00:05:40]} {[%emt 00:00:21]} 17.
Bg5 {[%clk 00:02:17]} {[%emt 00:00:18]} Qf7 {[%clk 00:04:44]} {[%emt 00:00:56]}
18. a3 {[%clk 00:02:12]} {[%emt 00:00:05]} Bc5 {[%clk 00:04:28]} {[%emt
00:00:16]} 19. b4 {[%clk 00:02:08]} {[%emt 00:00:03]} Bd4 {[%clk 00:04:27]}
{[%emt 00:00:01]} 20. Nxd4 {[%clk 00:02:05]} {[%emt 00:00:03]} exd4 {[%clk
00:04:17]} {[%emt 00:00:11]} 21. b5 {[%clk 00:01:56]} {[%emt 00:00:09]} Ne7
{[%clk 00:04:11]} {[%emt 00:00:06]} 22. Qe5 {[%clk 00:01:23]} {[%emt 00:00:33]}
Ne6 {[%clk 00:03:44]} {[%emt 00:00:27]} 23. Bxe7+ {[%clk 00:01:21]} {[%emt
00:00:02]} Kxe7 {[%clk 00:03:38]} {[%emt 00:00:06]} 24. Bxf5 {[%clk 00:01:18]}
{[%emt 00:00:02]} Rf8 {[%clk 00:03:28]} {[%emt 00:00:10]} 25. Bh3 {[%clk
00:01:02]} {[%emt 00:00:16]} Qxf2+ {[%emt 00:00:19]} 26. Kh1 Qf6 {[%clk
00:02:59]} {[%emt 00:00:09]} 27. Qe4 {[%clk 00:00:57]} {[%emt 00:00:05]} g5
{[%clk 00:02:47]} {[%emt 00:00:13]} 28. Re1 {[%clk 00:00:56]} {[%emt 00:00:01]}
g4 {[%clk 00:02:43]} {[%emt 00:00:04]} 29. Kg1 {[%clk 00:00:35]} {[%emt
00:00:20]} Qf2+ {[%clk 00:02:34]} {[%emt 00:00:09]} 30. Kh1 {[%clk 00:00:34]}
{[%emt 00:00:01]} gxh3 {[%clk 00:02:33]} {[%emt 00:00:01]} 31. Rg1 {[%clk
00:00:19]} {[%emt 00:00:16]} Qe3 {[%clk 00:02:16]} {[%emt 00:00:17]} 32. Qh7+
{[%clk 00:00:17]} {[%emt 00:00:02]} Rf7 {[%clk 00:02:13]} {[%emt 00:00:03]} 33.
Qxh5 {[%clk 00:00:16]} Bd7 {[%clk 00:01:52]} {[%emt 00:00:21]} 34. Qh4+ {[%clk
00:00:15]} {[%emt 00:00:01]} Qg5 {[%clk 00:01:47]} {[%emt 00:00:04]} 35. Qxh3
{[%clk 00:00:15]} {[%emt 00:00:01]} Qf5 {[%clk 00:01:33]} {[%emt 00:00:14]} 36.
Qh4+ {[%clk 00:00:13]} {[%emt 00:00:02]} Qf6 {[%clk 00:01:30]} {[%emt
00:00:02]} 37. Qh3 {[%clk 00:00:13]} Rh8 {[%clk 00:01:28]} {[%emt 00:00:03]} 38.
Qd3 {[%clk 00:00:11]} {[%emt 00:00:02]} Qe5 {[%clk 00:01:18]} {[%emt 00:00:09]}
39. h3 {[%clk 00:00:10]} {[%emt 00:00:01]} Qe3 {[%clk 00:01:13]} {[%emt
00:00:06]} 40. Qg6 {[%clk 00:00:08]} {[%emt 00:00:01]} Rxh3+ {[%clk 00:01:08]}
{[%emt 00:00:06]} 41. gxh3 {[%clk 00:00:04]} {[%emt 00:00:03]} Qxh3# {[%emt
00:00:01]} 0-1

[Event "Božićni turnir u VaraždinskimToplicama 26.12.2025."]
[Site "Varazdinske Toplice, Croatia"]
[Date "2025.12.26"]
[Round "5.8"]
[White "Hergotic, Ivica"]
[Black "Jakupec, Denis"]
[Result "1-0"]
[TimeControl "10"]
[WhiteFideId "14523884"]
[BlackFideId "14503310"]
[WhiteElo "2054"]
[BlackElo "1971"]

1. e4 {[%clk 00:09:57]} {[%emt 00:00:02]} c5 {[%clk 00:09:55]} {[%emt
00:00:05]} 2. f4 {[%clk 00:09:56]} {[%emt 00:00:01]} d5 {[%clk 00:09:44]}
{[%emt 00:00:11]} 3. e5 {[%clk 00:09:56]} Nc6 {[%clk 00:09:40]} {[%emt
00:00:04]} 4. Nf3 {[%clk 00:09:55]} {[%emt 00:00:01]} Bf5 {[%clk 00:09:35]}
{[%emt 00:00:05]} 5. Bb5 {[%clk 00:09:39]} {[%emt 00:00:16]} e6 {[%clk
00:09:28]} {[%emt 00:00:07]} 6. Bxc6+ {[%clk 00:09:36]} {[%emt 00:00:03]} bxc6
{[%clk 00:09:25]} {[%emt 00:00:02]} 7. O-O {[%clk 00:09:34]} {[%emt 00:00:02]}
h5 {[%clk 00:09:23]} {[%emt 00:00:02]} 8. d3 {[%clk 00:09:32]} {[%emt
00:00:04]} Ne7 {[%clk 00:09:18]} {[%emt 00:00:04]} 9. Nc3 {[%clk 00:09:18]}
{[%emt 00:00:14]} Bg4 {[%clk 00:09:15]} {[%emt 00:00:03]} 10. Be3 {[%clk
00:08:34]} {[%emt 00:00:44]} Nf5 {[%clk 00:09:12]} {[%emt 00:00:02]} 11. Bf2
{[%clk 00:08:32]} {[%emt 00:00:03]} Be7 {[%clk 00:09:09]} {[%emt 00:00:02]} 12.
h3 {[%clk 00:08:27]} {[%emt 00:00:05]} Bxf3 13. Qxf3 {[%clk 00:08:27]} h4
{[%clk 00:09:04]} {[%emt 00:00:03]} 14. b3 {[%clk 00:08:21]} {[%emt 00:00:06]}
Qa5 {[%clk 00:08:21]} {[%emt 00:00:43]} 15. Na4 {[%clk 00:08:16]} {[%emt
00:00:06]} O-O-O {[%clk 00:08:13]} {[%emt 00:00:07]} 16. c3 {[%clk 00:07:44]}
{[%emt 00:00:32]} f6 {[%clk 00:08:10]} {[%emt 00:00:02]} 17. Rfe1 {[%clk
00:06:59]} {[%emt 00:00:45]} fxe5 {[%clk 00:08:08]} {[%emt 00:00:02]} 18. Rxe5
{[%clk 00:06:48]} {[%emt 00:00:12]} Kd7 {[%clk 00:08:04]} {[%emt 00:00:04]} 19.
Rae1 {[%clk 00:06:37]} {[%emt 00:00:11]} Rh6 {[%clk 00:08:02]} {[%emt
00:00:01]} 20. Qe2 {[%clk 00:06:10]} {[%emt 00:00:28]} 1-0

[Event "Božićni turnir u VaraždinskimToplicama 26.12.2025."]
[Site "Varazdinske Toplice, Croatia"]
[Date "2025.12.26"]
[Round "5.9"]
[White "Sardi, Darko"]
[Black "Matkun, Josip"]
[Result "1-0"]
[TimeControl "10"]
[WhiteFideId "14511100"]
[BlackFideId "14513765"]
[WhiteElo "1905"]
[BlackElo "1832"]

1. e4 {[%clk 00:09:57]} {[%emt 00:00:03]} c5 {[%clk 00:09:59]} {[%emt
00:00:01]} 2. c3 {[%clk 00:09:55]} {[%emt 00:00:02]} d6 {[%clk 00:09:53]}
{[%emt 00:00:06]} 3. d4 {[%clk 00:09:54]} {[%emt 00:00:01]} cxd4 {[%clk
00:09:51]} {[%emt 00:00:02]} 4. cxd4 {[%clk 00:09:53]} Nf6 {[%clk 00:09:46]}
{[%emt 00:00:04]} 5. Nc3 {[%clk 00:09:52]} {[%emt 00:00:01]} a6 {[%clk
00:09:46]} {[%emt 00:00:01]} 6. f4 {[%clk 00:09:48]} {[%emt 00:00:04]} e6
{[%clk 00:09:31]} {[%emt 00:00:15]} 7. Nf3 {[%clk 00:09:47]} {[%emt 00:00:01]}
Be7 {[%clk 00:09:27]} {[%emt 00:00:04]} 8. Bd3 {[%clk 00:09:45]} {[%emt
00:00:01]} Nc6 {[%clk 00:09:26]} {[%emt 00:00:02]} 9. O-O {[%clk 00:09:42]}
{[%emt 00:00:04]} O-O {[%clk 00:09:22]} {[%emt 00:00:03]} 10. h3 {[%clk
00:09:20]} {[%emt 00:00:22]} Qc7 {[%clk 00:09:02]} {[%emt 00:00:20]} 11. Be3
{[%clk 00:09:16]} {[%emt 00:00:04]} b5 {[%clk 00:08:46]} {[%emt 00:00:15]} 12.
a3 {[%clk 00:09:15]} {[%emt 00:00:01]} Bb7 {[%clk 00:08:41]} {[%emt 00:00:06]}
13. Rc1 {[%clk 00:09:13]} {[%emt 00:00:02]} Qb8 {[%clk 00:08:16]} {[%emt
00:00:24]} 14. b4 {[%clk 00:09:08]} {[%emt 00:00:06]} Qd8 {[%clk 00:07:42]}
{[%emt 00:00:34]} 15. Bb1 {[%clk 00:09:05]} {[%emt 00:00:03]} Re8 {[%clk
00:07:34]} {[%emt 00:00:08]} 16. Qd3 {[%clk 00:08:55]} {[%emt 00:00:10]} g6
{[%clk 00:07:01]} {[%emt 00:00:33]} 17. f5 {[%clk 00:08:05]} {[%emt 00:00:50]}
Bf8 {[%clk 00:06:01]} {[%emt 00:01:00]} 18. fxg6 {[%clk 00:07:50]} {[%emt
00:00:15]} hxg6 {[%clk 00:05:40]} {[%emt 00:00:21]} 19. Bg5 {[%clk 00:07:45]}
{[%emt 00:00:06]} Be7 {[%clk 00:05:33]} {[%emt 00:00:06]} 20. Ba2 {[%clk
00:07:17]} {[%emt 00:00:28]} Nh5 {[%clk 00:05:18]} {[%emt 00:00:14]} 21. Be3
{[%clk 00:07:07]} {[%emt 00:00:11]} Bf6 {[%clk 00:04:40]} {[%emt 00:00:38]} 22.
Ne2 {[%clk 00:06:49]} {[%emt 00:00:18]} d5 {[%clk 00:04:21]} {[%emt 00:00:19]}
23. e5 {[%clk 00:06:39]} {[%emt 00:00:10]} Be7 {[%clk 00:04:19]} {[%emt
00:00:02]} 24. Bb1 {[%clk 00:06:31]} {[%emt 00:00:08]} Ng7 {[%clk 00:04:04]}
{[%emt 00:00:14]} 25. Nf4 {[%clk 00:06:20]} {[%emt 00:00:12]} a5 {[%clk
00:02:33]} {[%emt 00:01:31]} 26. Nxg6 {[%clk 00:05:43]} {[%emt 00:00:37]} Nf5
{[%clk 00:01:58]} {[%emt 00:00:35]} 27. Nxe7+ {[%clk 00:05:32]} {[%emt
00:00:10]} Ncxe7 {[%clk 00:01:14]} {[%emt 00:00:45]} 28. Bg5 {[%clk 00:05:25]}
{[%emt 00:00:08]} Qb6 {[%clk 00:01:02]} {[%emt 00:00:12]} 29. g4 {[%clk
00:05:09]} {[%emt 00:00:15]} axb4 {[%clk 00:00:50]} {[%emt 00:00:12]} 30. axb4
{[%clk 00:05:05]} {[%emt 00:00:04]} Ng6 {[%clk 00:00:24]} {[%emt 00:00:26]} 31.
gxf5 {[%clk 00:04:58]} {[%emt 00:00:07]} exf5 {[%clk 00:00:21]} {[%emt
00:00:03]} 32. Qxf5 {[%clk 00:04:54]} {[%emt 00:00:04]} Bc8 {[%clk 00:00:13]}
{[%emt 00:00:07]} 33. Qd3 {[%clk 00:04:41]} {[%emt 00:00:12]} Bxh3 {[%clk
00:00:09]} {[%emt 00:00:06]} 34. Rf2 {[%clk 00:04:30]} {[%emt 00:00:11]} Qe6
{[%clk 00:00:07]} {[%emt 00:00:02]} 35. Nh2 {[%clk 00:04:15]} {[%emt 00:00:15]}
Rac8 {[%clk 00:00:01]} {[%emt 00:00:06]} 36. Rd1 {[%clk 00:03:54]} {[%emt
00:00:21]} 1-0

[Event "Božićni turnir u VaraždinskimToplicama 26.12.2025."]
[Site "Varazdinske Toplice, Croatia"]
[Date "2025.12.26"]
[Round "5.10"]
[White "Hostnjak, Hrvoje"]
[Black "Jarnjak, Zlatko"]
[Result "0-1"]
[TimeControl "10"]
[WhiteFideId "14551470"]
[BlackFideId "79305938"]
[WhiteElo "1704"]
[BlackElo "1644"]

1. e4 {[%clk 00:09:58]} {[%emt 00:00:02]} d6 {[%clk 00:09:53]} {[%emt
00:00:07]} 2. d4 {[%clk 00:09:57]} {[%emt 00:00:01]} Nf6 {[%clk 00:09:51]}
{[%emt 00:00:02]} 3. Bd3 {[%clk 00:09:55]} {[%emt 00:00:02]} e5 {[%clk
00:09:47]} {[%emt 00:00:04]} 4. c3 {[%clk 00:09:54]} {[%emt 00:00:01]} Be7
{[%clk 00:09:42]} {[%emt 00:00:05]} 5. Ne2 {[%clk 00:09:50]} {[%emt 00:00:04]}
O-O {[%clk 00:09:39]} {[%emt 00:00:03]} 6. O-O {[%clk 00:09:48]} {[%emt
00:00:02]} Bg4 {[%clk 00:09:08]} {[%emt 00:00:31]} 7. Nd2 {[%clk 00:09:31]}
{[%emt 00:00:17]} Nbd7 {[%clk 00:09:00]} {[%emt 00:00:08]} 8. h3 {[%clk
00:09:01]} {[%emt 00:00:30]} Bh5 {[%clk 00:08:56]} {[%emt 00:00:04]} 9. g4
{[%clk 00:08:53]} {[%emt 00:00:08]} Bg6 {[%clk 00:08:54]} {[%emt 00:00:01]} 10.
f4 {[%clk 00:08:52]} {[%emt 00:00:01]} exf4 {[%clk 00:08:23]} {[%emt 00:00:31]}
11. Nxf4 {[%clk 00:08:49]} {[%emt 00:00:03]} c5 {[%clk 00:08:09]} {[%emt
00:00:15]} 12. b3 {[%clk 00:08:11]} {[%emt 00:00:39]} cxd4 {[%clk 00:07:48]}
{[%emt 00:00:20]} 13. cxd4 {[%clk 00:08:10]} {[%emt 00:00:01]} d5 {[%clk
00:07:19]} {[%emt 00:00:29]} 14. Nxg6 {[%clk 00:07:45]} {[%emt 00:00:24]} fxg6
{[%clk 00:06:49]} {[%emt 00:00:31]} 15. e5 {[%clk 00:07:41]} {[%emt 00:00:05]}
Qc7 {[%clk 00:06:25]} {[%emt 00:00:23]} 16. Qe2 {[%clk 00:07:12]} {[%emt
00:00:29]} Ne8 {[%clk 00:06:07]} {[%emt 00:00:18]} 17. Rxf8+ {[%clk 00:07:03]}
{[%emt 00:00:09]} Nxf8 {[%clk 00:05:50]} {[%emt 00:00:16]} 18. Nf3 {[%clk
00:07:00]} {[%emt 00:00:04]} Ne6 {[%clk 00:05:37]} {[%emt 00:00:13]} 19. Be3
{[%clk 00:06:35]} {[%emt 00:00:25]} g5 {[%clk 00:05:16]} {[%emt 00:00:21]} 20.
Rc1 {[%clk 00:06:28]} {[%emt 00:00:08]} Qb6 {[%clk 00:04:54]} {[%emt 00:00:21]}
21. Kg2 {[%clk 00:05:57]} {[%emt 00:00:31]} Nf4+ {[%clk 00:04:40]} {[%emt
00:00:14]} 22. Bxf4 {[%clk 00:05:52]} {[%emt 00:00:05]} gxf4 {[%clk 00:04:37]}
{[%emt 00:00:02]} 23. Qc2 {[%clk 00:05:06]} {[%emt 00:00:46]} g6 {[%clk
00:04:05]} {[%emt 00:00:32]} 24. h4 {[%clk 00:05:01]} {[%emt 00:00:06]} Qe6
{[%clk 00:03:46]} {[%emt 00:00:19]} 25. Kh3 {[%clk 00:04:28]} {[%emt 00:00:31]}
Ng7 {[%clk 00:03:23]} {[%emt 00:00:25]} 26. Qd2 {[%clk 00:04:20]} {[%emt
00:00:08]} Rf8 {[%clk 00:03:09]} {[%emt 00:00:13]} 27. Rg1 {[%clk 00:04:06]}
{[%emt 00:00:14]} Nh5 {[%clk 00:02:31]} {[%emt 00:00:38]} 28. Kh2 {[%clk
00:03:54]} {[%emt 00:00:12]} Ng3 {[%clk 00:02:25]} {[%emt 00:00:07]} 29. Rxg3
{[%clk 00:02:57]} {[%emt 00:00:57]} fxg3+ {[%clk 00:02:22]} {[%emt 00:00:02]}
30. Kxg3 {[%clk 00:02:57]} Qf7 {[%clk 00:02:01]} {[%emt 00:00:22]} 31. Qe3
{[%clk 00:02:48]} {[%emt 00:00:08]} Bb4 {[%clk 00:01:53]} {[%emt 00:00:08]} 32.
h5 {[%clk 00:02:32]} {[%emt 00:00:16]} gxh5 {[%clk 00:01:35]} {[%emt 00:00:18]}
33. e6 {[%clk 00:02:05]} {[%emt 00:00:26]} Bd6+ {[%clk 00:01:21]} {[%emt
00:00:14]} 34. Kg2 {[%clk 00:01:56]} {[%emt 00:00:09]} Qg7 {[%clk 00:01:10]}
{[%emt 00:00:11]} 35. g5 {[%clk 00:01:52]} {[%emt 00:00:05]} Bf4 {[%clk
00:01:04]} {[%emt 00:00:06]} 36. e7 {[%clk 00:01:51]} {[%emt 00:00:01]} Bxe3
{[%clk 00:00:59]} {[%emt 00:00:05]} 37. exf8=Q+ {[%clk 00:01:46]} {[%emt
00:00:05]} Qxf8 {[%clk 00:00:56]} {[%emt 00:00:03]} 38. Ne5 {[%clk 00:01:41]}
{[%emt 00:00:05]} Qf2+ {[%clk 00:00:54]} {[%emt 00:00:02]} 39. Kh3 {[%clk
00:01:40]} {[%emt 00:00:01]} Bf4 {[%clk 00:00:49]} {[%emt 00:00:04]} 40. Kg4
{[%clk 00:01:37]} {[%emt 00:00:04]} Bxe5+ {[%clk 00:00:44]} {[%emt 00:00:06]}
41. dxe5 {[%clk 00:01:36]} {[%emt 00:00:01]} Qd4+ {[%clk 00:00:41]} {[%emt
00:00:02]} 42. Kf5 {[%clk 00:01:34]} {[%emt 00:00:02]} Qxd3+ {[%clk 00:00:40]}
43. e6 {[%clk 00:01:33]} Kf8+ {[%clk 00:00:39]} {[%emt 00:00:02]} 44. Kf6
{[%clk 00:01:32]} Qf3+ {[%emt 00:00:01]} 45. Ke5 Ke7 {[%clk 00:00:36]} 0-1

[Event "Božićni turnir u VaraždinskimToplicama 26.12.2025."]
[Site "Varazdinske Toplice, Croatia"]
[Date "2025.12.26"]
[Round "5.11"]
[White "Veres, Vedran"]
[Black "Kodric, Vladimir"]
[Result "0-1"]
[TimeControl "10"]
[WhiteFideId "79330134"]
[BlackFideId "14604264"]
[WhiteElo "1930"]
[BlackElo "1920"]

1. e4 {[%clk 00:09:59]} e6 {[%clk 00:09:59]} {[%emt 00:00:01]} 2. d4 {[%clk
00:09:58]} {[%emt 00:00:01]} d5 {[%clk 00:09:58]} 3. exd5 {[%clk 00:09:56]}
{[%emt 00:00:04]} exd5 {[%clk 00:09:57]} {[%emt 00:00:01]} 4. Nf3 {[%clk
00:09:53]} {[%emt 00:00:03]} Bf5 {[%clk 00:09:53]} {[%emt 00:00:03]} 5. Bd3
{[%clk 00:09:43]} {[%emt 00:00:10]} Bxd3 {[%clk 00:09:52]} {[%emt 00:00:02]} 6.
Qxd3 {[%clk 00:09:41]} {[%emt 00:00:02]} c6 {[%clk 00:09:51]} 7. O-O {[%clk
00:09:38]} {[%emt 00:00:03]} Bd6 {[%clk 00:09:50]} {[%emt 00:00:01]} 8. Re1+
{[%clk 00:09:26]} {[%emt 00:00:12]} Ne7 {[%clk 00:09:49]} {[%emt 00:00:02]} 9.
Bg5 {[%clk 00:09:03]} {[%emt 00:00:22]} f6 {[%clk 00:09:47]} {[%emt 00:00:03]}
10. Bh4 {[%clk 00:08:51]} {[%emt 00:00:10]} O-O {[%clk 00:09:44]} {[%emt
00:00:05]} 11. Nbd2 {[%clk 00:08:32]} {[%emt 00:00:19]} Qd7 {[%clk 00:09:27]}
{[%emt 00:00:17]} 12. Bg3 {[%clk 00:08:23]} {[%emt 00:00:08]} Nf5 {[%clk
00:09:20]} {[%emt 00:00:07]} 13. Bxd6 {[%clk 00:08:20]} {[%emt 00:00:03]} Nxd6
{[%clk 00:09:19]} {[%emt 00:00:01]} 14. Re2 {[%clk 00:07:59]} {[%emt 00:00:20]}
Na6 {[%clk 00:09:17]} {[%emt 00:00:04]} 15. c3 {[%clk 00:07:46]} {[%emt
00:00:13]} Rae8 {[%clk 00:09:14]} {[%emt 00:00:02]} 16. Rae1 {[%clk 00:07:44]}
{[%emt 00:00:02]} g6 {[%clk 00:09:05]} {[%emt 00:00:10]} 17. b3 {[%clk
00:07:28]} {[%emt 00:00:16]} Rxe2 {[%clk 00:08:55]} {[%emt 00:00:10]} 18. Rxe2
{[%clk 00:07:21]} {[%emt 00:00:07]} Re8 {[%clk 00:08:51]} {[%emt 00:00:04]} 19.
h3 {[%clk 00:07:16]} {[%emt 00:00:04]} Nc7 {[%clk 00:08:45]} {[%emt 00:00:06]}
20. Rxe8+ {[%clk 00:06:34]} {[%emt 00:00:42]} Qxe8 {[%clk 00:08:43]} {[%emt
00:00:02]} 21. Qe3 {[%clk 00:06:29]} {[%emt 00:00:05]} Ncb5 {[%clk 00:08:32]}
{[%emt 00:00:11]} 22. c4 {[%clk 00:06:07]} {[%emt 00:00:23]} dxc4 {[%clk
00:08:25]} {[%emt 00:00:07]} 23. bxc4 {[%clk 00:06:03]} {[%emt 00:00:04]} Qxe3
{[%clk 00:08:22]} {[%emt 00:00:02]} 24. fxe3 {[%clk 00:06:00]} {[%emt
00:00:03]} Na3 {[%clk 00:08:19]} {[%emt 00:00:04]} 25. c5 {[%clk 00:05:44]}
{[%emt 00:00:15]} Ndc4 {[%clk 00:08:15]} {[%emt 00:00:05]} 26. Nxc4 {[%clk
00:05:30]} {[%emt 00:00:14]} Nxc4 {[%clk 00:08:13]} {[%emt 00:00:02]} 27. Kf2
{[%clk 00:05:22]} {[%emt 00:00:07]} b6 {[%clk 00:07:53]} {[%emt 00:00:21]} 28.
cxb6 {[%clk 00:05:14]} {[%emt 00:00:08]} axb6 {[%clk 00:07:52]} 29. Ke2 {[%clk
00:05:07]} {[%emt 00:00:07]} Kf7 {[%clk 00:07:48]} {[%emt 00:00:03]} 30. Kd3
{[%clk 00:05:03]} {[%emt 00:00:04]} Nd6 {[%clk 00:07:45]} {[%emt 00:00:03]} 31.
e4 {[%clk 00:04:54]} {[%emt 00:00:10]} Ke6 {[%clk 00:07:39]} {[%emt 00:00:06]}
32. g4 {[%clk 00:04:46]} {[%emt 00:00:07]} Nb5 {[%clk 00:07:10]} {[%emt
00:00:29]} 33. Kc4 {[%clk 00:04:37]} {[%emt 00:00:09]} Nc7 {[%clk 00:07:09]}
{[%emt 00:00:02]} 34. a4 {[%clk 00:04:24]} {[%emt 00:00:12]} Kd6 {[%clk
00:07:05]} {[%emt 00:00:04]} 35. h4 {[%clk 00:03:44]} {[%emt 00:00:40]} Ke6
{[%clk 00:07:01]} {[%emt 00:00:04]} 36. Kb4 {[%clk 00:02:29]} {[%emt 00:01:15]}
Kd6 {[%clk 00:06:56]} {[%emt 00:00:06]} 37. Kc4 {[%clk 00:02:28]} {[%emt
00:00:01]} Ne6 {[%clk 00:05:49]} {[%emt 00:01:06]} 38. Kb4 {[%clk 00:02:10]}
{[%emt 00:00:18]} Nf4 {[%clk 00:05:43]} {[%emt 00:00:06]} 39. Kc4 {[%clk
00:02:06]} {[%emt 00:00:05]} Ng2 {[%clk 00:05:39]} {[%emt 00:00:04]} 40. h5
{[%clk 00:01:42]} {[%emt 00:00:23]} Ne3+ {[%clk 00:05:37]} {[%emt 00:00:03]} 41.
Kd3 {[%clk 00:01:37]} {[%emt 00:00:04]} Nxg4 {[%clk 00:05:35]} {[%emt
00:00:03]} 42. hxg6 {[%clk 00:01:29]} {[%emt 00:00:08]} hxg6 {[%clk 00:05:34]}
{[%emt 00:00:01]} 43. Nh4 {[%clk 00:01:27]} {[%emt 00:00:02]} g5 {[%clk
00:05:25]} {[%emt 00:00:08]} 44. Nf5+ {[%clk 00:01:25]} {[%emt 00:00:03]} Kd7
{[%clk 00:05:08]} {[%emt 00:00:18]} 45. Ng7 {[%clk 00:01:09]} {[%emt 00:00:15]}
Nf2+ {[%clk 00:04:54]} {[%emt 00:00:14]} 46. Ke3 {[%clk 00:01:07]} {[%emt
00:00:02]} Nd1+ {[%clk 00:04:53]} 47. Kf3 {[%clk 00:00:54]} {[%emt 00:00:13]}
Nc3 {[%clk 00:04:51]} {[%emt 00:00:02]} 48. Nh5 {[%emt 00:00:03]} Ke7 {[%clk
00:04:47]} {[%emt 00:00:03]} 49. Ke3 {[%clk 00:00:34]} {[%emt 00:00:18]} Nxa4
{[%emt 00:00:01]} 50. e5 {[%emt 00:00:03]} fxe5 {[%clk 00:04:40]} {[%emt
00:00:02]} 51. dxe5 {[%clk 00:00:33]} {[%emt 00:00:02]} Ke6 {[%clk 00:04:37]}
{[%emt 00:00:03]} 52. Ke4 {[%clk 00:00:31]} {[%emt 00:00:01]} Nc3+ {[%clk
00:04:35]} {[%emt 00:00:02]} 53. Kd4 {[%clk 00:00:31]} {[%emt 00:00:01]} Ne2+
{[%clk 00:04:34]} 54. Ke4 {[%clk 00:00:30]} {[%emt 00:00:01]} c5 {[%clk
00:04:22]} {[%emt 00:00:12]} 55. Ng7+ {[%clk 00:00:27]} {[%emt 00:00:02]} Kf7
{[%clk 00:04:20]} {[%emt 00:00:02]} 56. Nf5 {[%clk 00:00:25]} {[%emt 00:00:02]}
Nf4 {[%clk 00:03:59]} {[%emt 00:00:21]} 57. Nd6+ {[%clk 00:00:22]} {[%emt
00:00:03]} Ke6 {[%clk 00:03:55]} {[%emt 00:00:05]} 58. Nc4 {[%clk 00:00:18]}
{[%emt 00:00:04]} b5 {[%clk 00:03:53]} {[%emt 00:00:01]} 59. Ne3 {[%clk
00:00:17]} {[%emt 00:00:01]} Ng6 {[%clk 00:03:42]} {[%emt 00:00:11]} 60. Nc2
{[%clk 00:00:15]} {[%emt 00:00:02]} Nxe5 {[%clk 00:03:39]} {[%emt 00:00:03]}
0-1